Workbook

Sheet Strategy Questions
C3: How does Tenor of Debt Affect the LCOE
C5: How much does the LCOE decrease with longer tenor and DSCR constraint
C7: How much does the LCOE decrease with longer tenor and Debt to Capital Constraint
C9: How does the discount rate on LCOE affect the strategy
C11: What is the danger with staged capacity payments
C13: What other questions should I ask about this

Sheet Analysis
B3: Compute the second capacity charge with goal seek
B5: Debt Service = Cap Chrg /DSCR
B7: Cap Chg = DS * DSCR
B9: DS = PMT(Debt, Tenor)
B11: PV(debt service) = Debt

Sheet Model No-tax
B1: Period | F1: 0 | G1: 1 | H1: 2 | I1: 3 | J1: 4 | K1: 5 | L1: 6 | M1: 7 | N1: 8 | O1: 9 | P1: 10 | Q1: 11 | R1: 12 | S1: 13 | T1: 14 | U1: 15 | V1: 16 | W1: 17 | X1: 18 | Y1: 19 | Z1: 20 | AA1: 21 | AB1: 22 | AC1: 23 | AD1: 24 | AE1: 25
A3: Assumptions
B4: Operations
C5: Year | F5: 0 | G5: 1 | H5: 16
C6: Capacity Payment | F6: 0 | G6: =E18 -> 51.49199953 | H6: 75.67327371
K7: Equity IRR | L7: =E55 -> 0.05999977144 | M7: NPV | N7: =F57 -> 502.9646398 | O7: Debt to Cap | P7: =E63 -> 0.6228766057 | Q7: DSCR | R7: =E22 -> 1.23 | S7: Tenor | T7: =H5 -> 16
C8: Capital Expenditure | E8: 800
B10: Finance
C11: Min DSCR Target | E11: =H11/100 -> 1.23 | H11: 123
C12: Max Debt to Capital Target | E12: =H12/100 -> 0.75 | H12: 75
C14: Tenor | E14: =H5 -> 16
C16: Interest Rate | E16: =H16/100 -> 0.04 | H16: 4
C17: Debt from Target Debt to Cap | E17: =E8*E12 -> 600
C18: Pmt from Debt, Tenor and Interest Rate | E18: =PMT(E16,E14,-E17) -> 51.49199953
B20: LCOE and IRR
C21: LLCR From Debt/Cap | E21: =E39/(E8*E12) -> 1
C22: Target DSCR | E22: =MAX(E21,E11) -> 1.23
C23: LCOE Discount Rate | E23: 0.1
F24: Actual | G24: Diff
C25: Target IRR | E25: =H25/100 -> 0.06 | F25: =L7 -> 0.05999977144 | G25: =E25-F25 -> 2.285624298e-07 | H25: 6
A27: Model - Operations
B28: Capital Exenditures | F28: =-E8 -> -800
B29: Capacity Payment with Lookup | F29: =LOOKUP(F1,5:5,6:6) -> 0 | G29: =LOOKUP(G1,5:5,6:6) -> 51.49199953 | H29: 51.49199953 | I29: 51.49199953 | J29: 51.49199953 | K29: 51.49199953 | L29: 51.49199953 | M29: 51.49199953 | N29: 51.49199953 | O29: 51.49199953 | P29: 51.49199953 | Q29: 51.49199953 | R29: 51.49199953 | S29: 51.49199953 | T29: 51.49199953 | U29: 51.49199953 | V29: 75.67327371 | W29: 75.67327371 | X29: 75.67327371 | Y29: 75.67327371 | Z29: 75.67327371 | AA29: 75.67327371 | AB29: 75.67327371 | AC29: 75.67327371 | AD29: 75.67327371 | AE29: 75.67327371
B31: Net Cash Flow | F31: =F29+F28 -> -800 | G31: =G29+G28 -> 51.49199953 | H31: 51.49199953 | I31: 51.49199953 | J31: 51.49199953 | K31: 51.49199953 | L31: 51.49199953 | M31: 51.49199953 | N31: 51.49199953 | O31: 51.49199953 | P31: 51.49199953 | Q31: 51.49199953 | R31: 51.49199953 | S31: 51.49199953 | T31: 51.49199953 | U31: 51.49199953 | V31: 75.67327371 | W31: 75.67327371 | X31: 75.67327371 | Y31: 75.67327371 | Z31: 75.67327371 | AA31: 75.67327371 | AB31: 75.67327371 | AC31: 75.67327371 | AD31: 75.67327371 | AE31: 75.67327371
B32: Project IRR | E32: =IRR(31:31) -> 0.05175300592
A34: Model - Finance
B35: Debt Sizing | E35: =E14 -> 16 | G35: =G1<=$E$35 -> TRUE | H35: =H1<=$E$35 -> TRUE | I35: TRUE | J35: TRUE | K35: TRUE | L35: TRUE | M35: TRUE | N35: TRUE | O35: TRUE | P35: TRUE | Q35: TRUE | R35: TRUE | S35: TRUE | T35: TRUE | U35: TRUE | V35: TRUE | W35: FALSE | X35: FALSE | Y35: FALSE | Z35: FALSE | AA35: FALSE | AB35: FALSE | AC35: FALSE | AD35: FALSE | AE35: FALSE
C36: First Year Cap Charge | E36: =G6 -> 51.49199953 | G36: =$E$36*G35 -> 51.49199953 | H36: =$E$36*H35 -> 51.49199953 | I36: 51.49199953 | J36: 51.49199953 | K36: 51.49199953 | L36: 51.49199953 | M36: 51.49199953 | N36: 51.49199953 | O36: 51.49199953 | P36: 51.49199953 | Q36: 51.49199953 | R36: 51.49199953 | S36: 51.49199953 | T36: 51.49199953 | U36: 51.49199953 | V36: 51.49199953 | W36: 0 | X36: 0 | Y36: 0 | Z36: 0 | AA36: 0 | AB36: 0 | AC36: 0 | AD36: 0 | AE36: 0
C37: Target Debt Service from Cash Flow | E37: =E22 -> 1.23 | G37: =G29/$E$37*G35 -> 41.86341425 | H37: =H29/$E$37*H35 -> 41.86341425 | I37: 41.86341425 | J37: 41.86341425 | K37: 41.86341425 | L37: 41.86341425 | M37: 41.86341425 | N37: 41.86341425 | O37: 41.86341425 | P37: 41.86341425 | Q37: 41.86341425 | R37: 41.86341425 | S37: 41.86341425 | T37: 41.86341425 | U37: 41.86341425 | V37: 61.52298675 | W37: 0 | X37: 0 | Y37: 0 | Z37: 0 | AA37: 0 | AB37: 0 | AC37: 0 | AD37: 0 | AE37: 0
C38: NPV of Debt Service | E38: =NPV(E16,G37:AE37) -> 498.3012845
C39: NPV of CFADS | E39: =NPV(E16,G36:AE36) -> 600
C41: Project Cost | E41: =E8 -> 800
C42: Debt from Debt to Capital | E42: =E41*E12 -> 600
C45: Repayment Applied | E45: =PMT(E16,E35,0) -> 0
C47: Debt Issue
D48: Opening Balance | G48: =F50 -> 498.3012845 | H48: =G50 -> 476.3699217 | I48: 453.5613043 | J48: 429.8403422 | K48: 405.1705416 | L48: 379.513949 | M48: 352.8310927 | N48: 325.0809222 | O48: 296.2207448 | P48: 266.2061604 | Q48: 234.9909925 | R48: 202.527218 | S48: 168.7648924 | T48: 133.6520739 | U48: 97.13474258 | V48: 59.15671803 | W48: -2.913225217e-13 | X48: -3.029754225e-13 | Y48: -3.150944394e-13 | Z48: -3.27698217e-13 | AA48: -3.408061457e-13 | AB48: -3.544383915e-13 | AC48: -3.686159272e-13 | AD48: -3.833605643e-13 | AE48: -3.986949868e-13
D49: Less: Repayment | G49: =G37-G51 -> 21.93136287 | H49: =H37-H51 -> 22.80861739 | I49: 23.72096208 | J49: 24.66980057 | K49: 25.65659259 | L49: 26.68285629 | M49: 27.75017054 | N49: 28.86017737 | O49: 30.01458446 | P49: 31.21516784 | Q49: 32.46377455 | R49: 33.76232554 | S49: 35.11281856 | T49: 36.5173313 | U49: 37.97802455 | V49: 59.15671803 | W49: 1.165290087e-14 | X49: 1.21190169e-14 | Y49: 1.260377758e-14 | Z49: 1.310792868e-14 | AA49: 1.363224583e-14 | AB49: 1.417753566e-14 | AC49: 1.474463709e-14 | AD49: 1.533442257e-14 | AE49: 1.594779947e-14
D50: Closing Balance | F50: =E38 -> 498.3012845 | G50: =G48-G49 -> 476.3699217 | H50: =H48-H49 -> 453.5613043 | I50: 429.8403422 | J50: 405.1705416 | K50: 379.513949 | L50: 352.8310927 | M50: 325.0809222 | N50: 296.2207448 | O50: 266.2061604 | P50: 234.9909925 | Q50: 202.527218 | R50: 168.7648924 | S50: 133.6520739 | T50: 97.13474258 | U50: 59.15671803 | V50: -2.913225217e-13 | W50: -3.029754225e-13 | X50: -3.150944394e-13 | Y50: -3.27698217e-13 | Z50: -3.408061457e-13 | AA50: -3.544383915e-13 | AB50: -3.686159272e-13 | AC50: -3.833605643e-13 | AD50: -3.986949868e-13 | AE50: -4.146427863e-13
D51: Interest | E51: =E16 -> 0.04 | G51: =$E$51*G48 -> 19.93205138 | H51: =$E$51*H48 -> 19.05479687 | I51: 18.14245217 | J51: 17.19361369 | K51: 16.20682166 | L51: 15.18055796 | M51: 14.11324371 | N51: 13.00323689 | O51: 11.84882979 | P51: 10.64824641 | Q51: 9.399639701 | R51: 8.101088719 | S51: 6.750595698 | T51: 5.346082955 | U51: 3.885389703 | V51: 2.366268721 | W51: -1.165290087e-14 | X51: -1.21190169e-14 | Y51: -1.260377758e-14 | Z51: -1.310792868e-14 | AA51: -1.363224583e-14 | AB51: -1.417753566e-14 | AC51: -1.474463709e-14 | AD51: -1.533442257e-14 | AE51: -1.594779947e-14
A53: Equity IRR and LCOE
B54: Equity IRR | F54: =F28+F50 -> -301.6987155 | G54: =G31-G37 -> 9.628585279 | H54: =H31-H37 -> 9.628585279 | I54: 9.628585279 | J54: 9.628585279 | K54: 9.628585279 | L54: 9.628585279 | M54: 9.628585279 | N54: 9.628585279 | O54: 9.628585279 | P54: 9.628585279 | Q54: 9.628585279 | R54: 9.628585279 | S54: 9.628585279 | T54: 9.628585279 | U54: 9.628585279 | V54: 14.15028695 | W54: 75.67327371 | X54: 75.67327371 | Y54: 75.67327371 | Z54: 75.67327371 | AA54: 75.67327371 | AB54: 75.67327371 | AC54: 75.67327371 | AD54: 75.67327371 | AE54: 75.67327371
B55: Equity IRR | E55: =IRR(54:54) -> 0.05999977144
B57: NPV of Revenues | E57: =E23 -> 0.1 | F57: =NPV(E57,G31:AE31) -> 502.9646398
G59: =G1 -> 1 | H59: =H1 -> 2 | I59: 3 | J59: 4 | K59: 5 | L59: 6 | M59: 7 | N59: 8 | O59: 9 | P59: 10 | Q59: 11 | R59: 12 | S59: 13 | T59: 14 | U59: 15 | V59: 16 | W59: 17 | X59: 18 | Y59: 19 | Z59: 20 | AA59: 21 | AB59: 22 | AC59: 23 | AD59: 24 | AE59: 25
B60: Cash Flow | G60: =G31 -> 51.49199953 | H60: =H31 -> 51.49199953 | I60: 51.49199953 | J60: 51.49199953 | K60: 51.49199953 | L60: 51.49199953 | M60: 51.49199953 | N60: 51.49199953 | O60: 51.49199953 | P60: 51.49199953 | Q60: 51.49199953 | R60: 51.49199953 | S60: 51.49199953 | T60: 51.49199953 | U60: 51.49199953 | V60: 75.67327371 | W60: 75.67327371 | X60: 75.67327371 | Y60: 75.67327371 | Z60: 75.67327371 | AA60: 75.67327371 | AB60: 75.67327371 | AC60: 75.67327371 | AD60: 75.67327371 | AE60: 75.67327371
B61: Debt Service | G61: =G37 -> 41.86341425 | H61: =H37 -> 41.86341425 | I61: 41.86341425 | J61: 41.86341425 | K61: 41.86341425 | L61: 41.86341425 | M61: 41.86341425 | N61: 41.86341425 | O61: 41.86341425 | P61: 41.86341425 | Q61: 41.86341425 | R61: 41.86341425 | S61: 41.86341425 | T61: 41.86341425 | U61: 41.86341425 | V61: 61.52298675 | W61: 0 | X61: 0 | Y61: 0 | Z61: 0 | AA61: 0 | AB61: 0 | AC61: 0 | AD61: 0 | AE61: 0
B63: Debt to Cap | E63: =E38/E8 -> 0.6228766057

Sheet Graph and Analysis
L2: Debt Tenor | M2: ='Model No-tax'!H5 -> 16
L3: DSCR | M3: ='Model No-tax'!$E$11 -> 1.23
L4: Debt to Cap | M4: ='Model No-tax'!$E$12 -> 0.75
L5: Equity IRR | M5: ='Model No-tax'!$E$25 -> 0.06
L6: Interest Rate | M6: ='Model No-tax'!$E$16 -> 0.04
L9: NPV of Cap Charge | M9: ='Model No-tax'!$F$57 -> 502.9646398
